Cogmind - Beta 15 @@@ ROGUE MODE // 2025.10.05 @ 18:47:05 Player: beans Result: Destroyed by S-27 Virus with Autogun Performance ------------- Evolutions (4) 2000 Regions Visited (10) 2000 Robots Destroyed (120) 600 Value Destroyed (2932) 2932 Prototype IDs (30) 600 Alien Tech Used (0) 0 Bonus (949) 949 TOTAL SCORE: 9081 Bonus ------- High Alert Combat Kills 123 Follower Combat Kills 526 Aligned with FarCom 300 Cogmind --------- Core Integrity 0/850 Matter 292/300 Energy 100/100 System Corruption 3% Temperature Cool (0) Movement Core (250) Ox4 Location -6/Factory Parts ------- > --- POWER (1) -------- (None) > --- PROPULSION (4) --- (None) > --- UTILITY (8) ------ Lightpack 2.0 Experimental Core Analyzer EX Chip 1 EX Chip 1 EX Chip 2 > --- WEAPON (2) ------- Minigun Heavy Machine Gun > --- INVENTORY (40) --- Cloak of Protection 8R-AWN's Armor/EX Thief Drone Bay (3/3) Minigun Minigun Peak State ------------ > --- POWER ------------ Light Neutrino Core > --- PROPULSION ------- Flying Fortress v7 > --- UTILITY ---------- Large Storage Unit Experimental Core Analyzer EX Chip 1 EX Chip 2 > --- WEAPON ----------- Pulse Rifle Mace > --- INVENTORY -------- Lightpack 2.0 Cloak of Protection 8R-AWN's Armor/EX EX Chip 1 EX Chip 2 Thief Drone Bay Heavy Assault Rifle Mini Grenade Launcher Deploy-a-Sentry [Rating: 68] Favorites ----------- Power Light Neutrino Core Engine Improved Ion Engine Power Core Light Neutrino Core Propulsion Light Treads Treads Light Treads Leg Advanced Myomer Leg Hover Unit Airjet Flight Unit VTOL Module Utility Large Storage Unit Device Thief Drone Bay Storage Large Storage Unit Processor Experimental Core Analyzer Hackware EX Chip 1 Protection Light Armor Plating Weapon Heavy Assault Rifle Energy Gun Medium Laser Ballistic Gun Heavy Assault Rifle Launcher Mini Grenade Launcher Impact Weapon Mace Special Melee Weapon Improved Datajack Build | -11 -10 -9 -9 -9 -8 -8 -8 -8 -8 -6 ------- Run | Yrd Mat Mat Min Exi Min Mat Sto Rec Scr Fac Slots Evolved 8 | . . 2 . . . 2 . . . 4 Power . | . . . . . . . . . . . Propulsion 2 | . . 2 . . . . . . . . Utility 6 | . . . . . . 2 . . . 4 Weapon . | . . . . . . . . . . . Parts Attached 65 | . 12 10 4 13 . 2 6 4 2 12 Power 6 | . 1 1 1 2 . . . . . 1 Engine 5 | . 1 1 1 1 . . . . . 1 Core 1 | . . . . 1 . . . . . . Reactor . | . . . . . . . . . . . Propulsion 21 | . 2 4 2 6 . . 1 4 . 2 Treads 9 | . . 4 2 3 . . . . . . Leg 5 | . . . . 2 . . 1 . . 2 Wheel . | . . . . . . . . . . . Hover 4 | . . . . . . . . 4 . . Flight 3 | . 2 . . 1 . . . . . . Utility 15 | . 2 4 1 2 . 2 . . . 4 Device 3 | . . . 1 1 . . . . . 1 Storage 2 | . . 1 . . . . . . . 1 Processor 4 | . . 3 . 1 . . . . . . Hackware 4 | . . . . . . 2 . . . 2 Protection 2 | . 2 . . . . . . . . . Artifact . | . . . . . . . . . . . Weapon 23 | . 7 1 . 3 . . 5 . 2 5 Energy Gun 3 | . 1 . . 1 . . 1 . . . Energy Cannon . | . . . . . . . . . . . Ballistic Gun 11 | . 2 1 . 1 . . 2 . 2 3 Ballistic Cannon . | . . . . . . . . . . . Launcher 7 | . 4 . . 1 . . 1 . . 1 Special Weapon . | . . . . . . . . . . . Impact Weapon 1 | . . . . . . . 1 . . . Slashing Weapon . | . . . . . . . . . . . Piercing Weapon . | . . . . . . . . . . . Special Melee Weapon 1 | . . . . . . . . . . 1 Unidentified Prototypes 7 | . 1 1 1 4 . . . . . . Corrupted Parts 1 | . . . . 1 . . . . . . System Corruption 1 | . . . . 1 . . . . . . Parts Lost 32 | . 5 1 2 13 . . 2 . . 9 Power 4 | . . 1 . 1 . . 1 . . 1 Propulsion 14 | . . . 2 7 . . 1 . . 4 Utility 2 | . 1 . . . . . . . . 1 Weapon 12 | . 4 . . 5 . . . . . 3 Highest Loss Streak 11 | . 3 1 2 11 . . 1 . . 6 To Critical Strikes 8 | . . . . 8 . . . . . . Average Backups 8 | . . 4 11 11 9 8 9 10 9 6 Power . | . . . 1 2 . . . . . . Propulsion . | . . . 2 1 . . . . . . Utility 3 | . . 1 2 3 8 7 6 6 6 3 Weapon 3 | . . 3 4 3 1 1 3 4 3 3 Tool/Special . | . . . . . . . . . . . Unused Backups 10 | . . . . 9 . . . . . 1 Power 1 | . . . . 1 . . . . . . Propulsion 2 | . . . . 2 . . . . . . Utility 7 | . . . . 6 . . . . . 1 Weapon . | . . . . . . . . . . . Tool/Special . | . . . . . . . . . . . Average Slot Usage (%) 69 | . 37 89 94 74 55 49 63 73 89 52 Engine 3 | . 5 9 7 5 . . . . . 1 Core 1 | . . . . 4 11 9 3 . . . Treads 11 | . . 34 42 14 . . . . . . Leg 4 | . . . . 11 . . 4 5 . 2 Hover 3 | . . . . . . . . 14 36 5 Flight 2 | . 11 3 . . 11 9 3 . . . Storage 7 | . . 3 11 11 11 9 9 9 9 6 Processor 8 | . . 15 11 7 11 9 9 9 9 6 Hackware 8 | . . . . . . 4 18 18 18 22 Ballistic Gun 12 | . 1 21 22 13 11 9 11 18 17 6 Launcher 1 | . 5 . . . . . 4 . . . Peak Build Rating 68 | . 12 16 18 61 61 64 68 40 42 61 Average Rating 30 | . 4 13 15 29 61 62 43 33 41 50 On Entrance 30 | . . 6 13 17 61 61 64 29 40 42 Naked Turns 74 | . 74 . . . . . . . . . Heaviest Build 39 | . 12 33 36 35 31 31 34 26 26 39 Greatest Support 80 | 3 8 80 80 80 50 50 50 32 24 40 Greatest Overweight (x) 10 | . 2 4 . 10 . . 7 3 1 10 Average Overweight (x) . | . . . . . . . . 1 . . Largest Inventory Capacity 40 | 5 5 15 15 15 15 15 15 15 15 40 Average Capacity 15 | 5 5 8 14 15 15 15 15 15 15 30 Most Carried 15 | . 4 10 14 15 14 14 15 15 15 15 Average Carried 10 | . . 4 11 12 14 13 14 15 14 9 Final Capacity 40 | 5 5 15 15 15 15 15 15 15 15 40 Final Carried 15 | . 4 9 14 14 14 12 15 15 15 7 Class Distribution -------------------- 41% | Scavenger-Mutant 31% | Mutant 18% | Commander-Mutant 7% | Hauler-Mutant Dominant Class ---------------- Mutant | -10/Materials Scavenger-Mutant | -9/Materials Scavenger-Mutant | -9/Mines Scavenger-Mutant | -9/Exiles Mutant | -8/Mines Mutant | -8/Materials Scavenger-Mutant | -8/Storage Commander-Mutant | -8/Recycling Commander-Mutant | -8/Scraptown Hauler-Mutant | -6/Factory Resources | -11 -10 -9 -9 -9 -8 -8 -8 -8 -8 -6 ----------- Run | Yrd Mat Mat Min Exi Min Mat Sto Rec Scr Fac Matter Collected 3199 | 200 547 561 52 450 . 226 664 55 40 404 Remotely . | . . . . . . . . . . . Salvage Created 4029 | . 779 975 22 276 . . 1461 58 . 458 Parts 221 | . 36 57 4 33 . . 61 3 . 27 Haulers Intercepted 11 | . 2 5 . . . . 4 . . . Recyclers Shooed 7 | . 2 3 . . . . 1 . . 1 Parts Field Recycled . | . . . . . . . . . . . Retrieved Matter . | . . . . . . . . . . . Parts Self-Destructed . | . . . . . . . . . . . Prevented . | . . . . . . . . . . . Kills | -11 -10 -9 -9 -9 -8 -8 -8 -8 -8 -6 ------- Run | Yrd Mat Mat Min Exi Min Mat Sto Rec Scr Fac Combat Hostiles Destroyed 65 | . 14 12 2 8 . . 22 1 . 6 Guns 35 | . 2 12 2 1 . . 12 1 . 5 AOE 28 | . 12 . . 7 . . 8 . . 1 Classes Destroyed 17 | . 9 2 . 3 . . . . . 3 Worker 10 | . 5 . . . . . 3 . . 2 Builder 7 | . 2 3 . . . . 1 . . 1 Tunneler 1 | . . 1 . . . . . . . . Hauler 11 | . 2 5 . . . . 4 . . . Recycler 12 | . 4 2 . . . . 5 . . 1 Mechanic 1 | . 1 . . . . . . . . . Operator 3 | . 1 . . . . . 1 . . 1 Turret 1 | . . . . 1 . . . . . . Watcher 7 | . 3 3 . . . . 1 . . . Swarmer 7 | . 1 3 2 . . . . . . 1 Grunt 36 | . 13 5 . 1 . . 15 . . 2 Duelist 1 | . . . . . . . . . . 1 Sentry 12 | . . 4 . . . . 7 1 . . Hunter 1 | . . . . . . . . . . 1 Programmer 1 | . . . . . . . . . . 1 Zionite 7 | . . . . 7 . . . . . . Assembled 7 | . . . . 7 . . . . . . Best Kill Streak 19 | . 19 4 2 7 . . 9 1 . 3 Combat Bots Only 7 | . 6 4 2 7 . . 7 1 . 2 Max Kills in Single Turn 4 | . 4 1 1 2 . . 3 1 . 1 Gunslinging . | . . . . . . . . . . . Exploded 2 | . 2 . . 2 . . 2 . . 1 Melee . | . . . . . . . . . . . Uniques/NPCs Destroyed 4 | . . . . 4 . . . . . . 8R-AWN (-9/Exiles) EX-BIN (-9/Exiles) EX-DEC (-9/Exiles) EX-HEX (-9/Exiles) Combat | -11 -10 -9 -9 -9 -8 -8 -8 -8 -8 -6 -------- Run | Yrd Mat Mat Min Exi Min Mat Sto Rec Scr Fac Hostile Shots Fired 522 | . 65 41 27 116 11 8 94 . . 160 Missed 155 | . 16 14 8 26 8 4 26 . . 53 Hits 367 | . 49 27 19 90 3 4 68 . . 107 Projectile 367 | . 49 27 19 90 3 4 68 . . 107 Critical Strikes 42 | . 1 2 . 36 . . 1 . . 2 Damage Taken 5935 | . 821 318 158 1630 58 61 1147 . . 1742 Core 1632 | . 214 14 24 351 9 16 152 . . 852 Absorbed by Shields . | . . . . . . . . . . . Regen/Repaired (Parts) 82 | . . . . . . . 82 . . . Core Remaining (%) 45 | 100 14 . . . . . . . 69 . Volleys Fired 325 | . 48 71 6 98 . 1 70 1 . 30 Largest 2 | . 2 2 2 2 . 1 2 2 . 2 Hottest 86 | . 60 46 46 68 . 23 86 46 . 55 Shots Fired 536 | . 66 142 12 125 . 1 130 2 . 58 Gun 443 | . 20 142 12 105 . 1 106 2 . 55 Cannon . | . . . . . . . . . . . Launcher 93 | . 46 . . 20 . . 24 . . 3 Special . | . . . . . . . . . . . Kinetic 421 | . 12 142 12 92 . 1 105 2 . 55 Thermal 9 | . 8 . . . . . 1 . . . Explosive 93 | . 46 . . 20 . . 24 . . 3 Electromagnetic 13 | . . . . 13 . . . . . . Robot Hit Streak 21 | . 10 21 2 17 . . 10 2 . 9 Robot Miss Streak 5 | . 4 5 2 3 . 1 4 . . 3 Penetration Max . | . . . . . . . . . . . Secondary Targets 6 | . 1 2 . . . . 2 . . 1 Max Gunslinging Chain 1 | . 1 1 . . . . 1 . . 1 Shots Hit Robots 326 | . 23 90 6 83 . . 87 1 . 36 Core Hits 226 | . 49 34 2 47 . . 70 1 . 23 Critical Kills . | . . . . . . . . . . . Critical Parts Destroyed 6 | . . 2 . . . . 4 . . . Critical Strikes 8 | . . 2 . 1 . . 5 . . . Destroy 3 | . . 2 . 1 . . . . . . Smash 5 | . . . . . . . 5 . . . Melee Attacks 18 | . . . . . . . 15 . . 3 Impact 15 | . . . . . . . 15 . . . Slashing . | . . . . . . . . . . . Piercing . | . . . . . . . . . . . Sneak Attacks 4 | . . . . . . . 1 . . 3 Combat Hostiles . | . . . . . . . . . . . Follow-up Attacks . | . . . . . . . . . . . Damage Inflicted 10050 | . 2429 1425 101 2367 . . 2874 18 . 836 Guns 4335 | . 173 1425 101 1070 . . 981 18 . 567 Cannons . | . . . . . . . . . . . Explosions 5339 | . 2256 . . 1297 . . 1517 . . 269 Melee 376 | . . . . . . . 376 . . . Ramming . | . . . . . . . . . . . Kinetic 4225 | . 75 1425 101 1058 . . 981 18 . 567 Thermal 291 | . 291 . . . . . . . . . Explosive 5146 | . 2063 . . 1297 . . 1517 . . 269 Electromagnetic 12 | . . . . 12 . . . . . . Impact 376 | . . . . . . . 376 . . . Slashing . | . . . . . . . . . . . Piercing . | . . . . . . . . . . . Highest Corruption 4 | . 2 . . 4 . . . . . 3 Average Corruption 2 | . 2 . . 3 . . . . . 2 Corruption Purged 4 | . . . . 4 . . . . . . Corruption Blocked . | . . . . . . . . . . . Effects 27 | . 7 . . 12 . . . . . 8 Message Errors 5 | . 3 . . 1 . . . . . 1 Matter Fused 5 | . . . . 4 . . . . . 1 Heat Flow Errors 8 | . 3 . . 3 . . . . . 2 Energy Discharges 3 | . 1 . . 1 . . . . . 1 Data Loss (minor) 5 | . . . . 3 . . . . . 2 Misfires 1 | . . . . . . . . . . 1 Overload Shots . | . . . . . . . . . . . Overflow Damage 359 | . 138 . . 23 . . 198 . . . Projectiles . | . . . . . . . . . . . Explosions 187 | . 138 . . 23 . . 26 . . . Melee 172 | . . . . . . . 172 . . . Knockbacks 1 | . . . . . . . 1 . . . Impact 1 | . . . . . . . 1 . . . Kinetic . | . . . . . . . . . . . Secondary . | . . . . . . . . . . . Self-Inflicted Damage 258 | . 137 . . 23 . . 98 . . . Shots 13 | . 7 . . 1 . . 5 . . . Rammed . | . . . . . . . . . . . Targets Rammed . | . . . . . . . . . . . Kicked . | . . . . . . . . . . . Crushed . | . . . . . . . . . . . Highest Temperature 227 | . 227 20 . 152 . 5 55 . . 220 Average Temperature 49 | . 67 7 . 65 . 5 19 . . 88 Received Heat Transfer 876 | . 177 138 . . . 27 468 . . 66 Siege Activations . | . . . . . . . . . . . Martial Activations . | . . . . . . . . . . . Shielding Activations . | . . . . . . . . . . . Robots Disrupted . | . . . . . . . . . . . Combat Hostiles . | . . . . . . . . . . . Robots Corrupted 2 | . . . . . . . 2 . . . Combat Hostiles 2 | . . . . . . . 2 . . . Parts Fried . | . . . . . . . . . . . Impact Corruptions 6 | . . . . . . . 6 . . . Robots Melted . | . . . . . . . . . . . Combat Hostiles . | . . . . . . . . . . . Parts Melted 4 | . . . . . . . . . . 4 Heat Transferred 446 | . 446 . . . . . . . . . Parts Sabotaged . | . . . . . . . . . . . Parts Stolen . | . . . . . . . . . . . Parts Stripped . | . . . . . . . . . . . Power Chain Reactions . | . . . . . . . . . . . Alert | -11 -10 -9 -9 -9 -8 -8 -8 -8 -8 -6 ------- Run | Yrd Mat Mat Min Exi Min Mat Sto Rec Scr Fac Maximum Alert Level 2 | . 2 1 . . . . 2 . . 2 Low Security (%) 37 | 100 13 6 100 . 100 100 35 100 . 20 Level 1 28 | . 12 93 . . . . 3 . . 39 Level 2 34 | . 74 . . . . . 60 . . 39 Level 3 . | . . . . . . . . . . . Level 4 . | . . . . . . . . . . . Level 5 . | . . . . . . . . . . . High Security . | . . . . . . . . . . . Max Security . | . . . . . . . . . . . Peak Influence 646 | . 646 291 94 . . . 578 192 . 485 Initial 213 | . . 213 94 . . . . 157 . . Average 265 | . 445 233 40 . . . 319 122 . 290 Influence Increases 3319 | . 831 427 104 . . . 897 108 . 952 Destroy 0b10 Robot/C 1500 | . 280 240 80 . . . 440 60 . 400 Destroy 0b10 Robot/NC 270 | . 90 70 . . . . 75 5 . 30 Destroy Leader 356 | . 70 86 10 . . . 120 . . 70 Allied During Kill 205 | . . . 14 . . . 3 43 . 145 Successful Hack 54 | . . . . . . . 8 . . 46 Disable Machine 330 | . 180 30 . . . . 60 . . 60 Destroy Structure 364 | . 181 1 . . . . 131 . . 51 Partial Spotted 30 | . 30 . . . . . . . . . Lose Combat Pursuer 210 | . . . . . . . 60 . . 150 Influence Decreases 2901 | . 324 690 348 . . . 492 474 39 534 Entered New Map 731 | . . 294 150 . . . . 248 39 . Time Decay 1890 | . 274 386 188 . . . 472 206 . 364 Lost Part 180 | . 50 10 10 . . . 20 . . 90 Lost Ally 100 | . . . . . . . . 20 . 80 Squads Dispatched 13 | . 2 1 . . . 1 3 . . 6 Investigation 5 | . . 1 . . . . 1 . . 3 Extermination 2 | . . . . . . . . . . 2 Reinforcement 6 | . 2 . . . . 1 2 . . 1 Assault . | . . . . . . . . . . . Garrison . | . . . . . . . . . . . Intercept . | . . . . . . . . . . . Searches Triggered . | . . . . . . . . . . . Construction Impeded . | . . . . . . . . . . . Haulers Reinforced . | . . . . . . . . . . . Active Scanning Responses . | . . . . . . . . . . . Cargo Convoy Interrupts . | . . . . . . . . . . . Stealth | -11 -10 -9 -9 -9 -8 -8 -8 -8 -8 -6 --------- Run | Yrd Mat Mat Min Exi Min Mat Sto Rec Scr Fac Distress Signals 4 | . 2 2 . . . . . . . . Communications Jammed . | . . . . . . . . . . . Distress Signals . | . . . . . . . . . . . Times Spotted 152 | . 26 23 5 19 8 3 32 3 . 33 Peak Tracking Total 9 | . 6 5 4 9 4 4 6 2 . 7 Tactical Retreats 15 | . 2 . . 4 1 . 2 . . 6 Traps | -11 -10 -9 -9 -9 -8 -8 -8 -8 -8 -6 ------- Run | Yrd Mat Mat Min Exi Min Mat Sto Rec Scr Fac Traps Triggered 4 | . . . . . . . 3 . . 1 Indirectly . | . . . . . . . . . . . Trap Hack Attempts . | . . . . . . . . . . . Triggered . | . . . . . . . . . . . Disarmed . | . . . . . . . . . . . Reprogrammed . | . . . . . . . . . . . Reused . | . . . . . . . . . . . Traps Extracted . | . . . . . . . . . . . Installed . | . . . . . . . . . . . Triggered . | . . . . . . . . . . . Machines | -11 -10 -9 -9 -9 -8 -8 -8 -8 -8 -6 ---------- Run | Yrd Mat Mat Min Exi Min Mat Sto Rec Scr Fac Machines Disabled 41 | . 13 3 1 16 . . 4 . . 4 Max in Single Turn 4 | . 4 1 1 4 . . 1 . . . Machines Repaired . | . . . . . . . . . . . Machines Dismantled . | . . . . . . . . . . . Machines Sabotaged . | . . . . . . . . . . . Overloaded Fab Kills . | . . . . . . . . . . . Hacking | -11 -10 -9 -9 -9 -8 -8 -8 -8 -8 -6 --------- Run | Yrd Mat Mat Min Exi Min Mat Sto Rec Scr Fac Machines Accessed 11 | . . 2 1 2 . . 3 . . 3 Terminals 5 | . . 1 . . . . 2 . . 2 Fabricators 1 | . . . . . . . . . . 1 Repair Stations 2 | . . 1 . . . . 1 . . . Recycling Units . | . . . . . . . . . . . Scanalyzers . | . . . . . . . . . . . Garrison Access . | . . . . . . . . . . . Total Hacks 39 | . . 8 1 10 . . 8 . . 12 Successful 21 | . . 2 1 10 . . 3 . . 5 Failed 18 | . . 6 . . . . 5 . . 7 Catastrophic 6 | . . 2 . . . . 2 . . 2 Database Lockouts . | . . . . . . . . . . . Manual 2 | . . . . 1 . . 1 . . . Terminals 16 | . . 4 . . . . 5 . . 7 Fabricators 5 | . . . . . . . . . . 5 Repair Stations 7 | . . 4 . . . . 3 . . . Recycling Units . | . . . . . . . . . . . Scanalyzers . | . . . . . . . . . . . Garrison Access . | . . . . . . . . . . . Terminal Hacks 15 | . . . 1 10 . . 1 . . 3 Record 11 | . . . . 9 . . . . . 2 Robot Schematic 1 | . . . . . . . . . . 1 Open Door 2 | . . . 1 . . . 1 . . . Proto ID Catalog 1 | . . . . 1 . . . . . . Fabricator Hacks 2 | . . . . . . . . . . 2 Load Schematic 1 | . . . . . . . . . . 1 Build 1 | . . . . . . . . . . 1 Repair Station Hacks 4 | . . 2 . . . . 2 . . . Scan Component 3 | . . 2 . . . . 1 . . . Repair 1 | . . . . . . . 1 . . . Recycling Unit Hacks . | . . . . . . . . . . . Scanalyzer . | . . . . . . . . . . . Garrison Access Hacks . | . . . . . . . . . . . Unauthorized Hacks . | . . . . . . . . . . . Terminals . | . . . . . . . . . . . Fabricators . | . . . . . . . . . . . Repair Stations . | . . . . . . . . . . . Recycling Units . | . . . . . . . . . . . Scanalyzers . | . . . . . . . . . . . Garrison Access . | . . . . . . . . . . . Data Cores Recovered 1 | . . . . . . . . . . 1 Used . | . . . . . . . . . . . Hacking Detections 9 | . . 2 . . . . 4 . . 3 Full Trace Events 5 | . . 2 . . . . . . . 3 Feedback Events . | . . . . . . . . . . . Feedback Blocked . | . . . . . . . . . . . Robot Schematics Acquired 1 | . . . . . . . . . . 1 Robots Built . | . . . . . . . . . . . Authchips . | . . . . . . . . . . . Time 58 | . . . . . . . . . . 58 Total Robot Build Rating . | . . . . . . . . . . . Part Schematics Acquired . | . . . . . . . . . . . Parts Built . | . . . . . . . . . . . Authchips . | . . . . . . . . . . . Time . | . . . . . . . . . . . Total Part Build Rating . | . . . . . . . . . . . Parts Repaired 1 | . . . . . . . 1 . . . Time 32 | . . . . . . . 32 . . . Parts Recycled . | . . . . . . . . . . . Recycled Matter . | . . . . . . . . . . . Retrieved Matter . | . . . . . . . . . . . Retrieved Components . | . . . . . . . . . . . Parts Scanalyzed . | . . . . . . . . . . . Part Schematics Acquired . | . . . . . . . . . . . Parts Damaged . | . . . . . . . . . . . Bothacking | -11 -10 -9 -9 -9 -8 -8 -8 -8 -8 -6 ------------ Run | Yrd Mat Mat Min Exi Min Mat Sto Rec Scr Fac Used RIF Installer . | . . . . . . . . . . . Robots Hacked 2 | . . . . . . . . . . 2 Non-combat 2 | . . . . . . . . . . 2 Combat . | . . . . . . . . . . . Robot Hacks Applied 3 | . . . . . . . . . . 3 parse_system 1 | . . . . . . . . . . 1 find_chute 2 | . . . . . . . . . . 2 Relay Couplers Released . | . . . . . . . . . . . Fabnet Peak Effective % . | . . . . . . . . . . . Robots Rewired . | . . . . . . . . . . . Allies Hacked . | . . . . . . . . . . . Hacks Repelled . | . . . . . . . . . . . Allies | -11 -10 -9 -9 -9 -8 -8 -8 -8 -8 -6 -------- Run | Yrd Mat Mat Min Exi Min Mat Sto Rec Scr Fac Total Allies 13 | . . . 3 . . . 10 . . . Largest Group 10 | . . . 3 3 . . 10 10 9 9 Highest-Rated Group 173 | . . . 40 40 . . 173 173 157 157 Highest-Rated Ally 29 | . . . 16 16 . . 29 29 29 29 Total Orders 4 | . . . . 3 . . . . . 1 STAY 2 | . . . . 1 . . . . . 1 FOLLOW 1 | . . . . 1 . . . . . . RETURN 1 | . . . . 1 . . . . . . Ally Attacks 217 | . . . 14 101 . . . 9 . 93 Total Damage 3000 | . . . 104 342 . . . 133 . 2421 Kills 27 | . . . 2 2 . . . 3 . 20 Allies Corrupted . | . . . . . . . . . . . Allies Melted . | . . . . . . . . . . . Turrets Deployed 1 | . . . . . . . . . . 1 Intel | -11 -10 -9 -9 -9 -8 -8 -8 -8 -8 -6 ------- Run | Yrd Mat Mat Min Exi Min Mat Sto Rec Scr Fac Active Infowar (turns) 1 | . . . . . . . . . . 1 Cloaking 1 | . . . . . . . . . . 1 Robot Analysis Total . | . . . . . . . . . . . Derelict Logs Recovered 1 | . . . 1 . . . . . . . Drone Launches 4 | . . . . 4 . . . . . . Drone Recoveries 4 | . . . . 4 . . . . . . Exploration | -11 -10 -9 -9 -9 -8 -8 -8 -8 -8 -6 ------------- Run | Yrd Mat Mat Min Exi Min Mat Sto Rec Scr Fac Turns Passed 6717 | 15 657 915 427 1676 66 28 1342 422 310 859 Spaces Moved 4499 | 29 681 465 233 1085 132 48 709 206 227 684 Core 888 | 29 458 3 . 8 . . 10 . . 380 Treads 860 | . . 362 233 265 . . . . . . Legs 1054 | . . . . 601 . . 259 80 . 114 Wheels . | . . . . . . . . . . . Hover 543 | . . . . . . . . 126 227 190 Flight 1154 | . 223 100 . 211 132 48 440 . . . Fastest Speed 32 | 50 32 32 160 50 50 50 50 48 52 48 Average Speed 114 | 50 72 143 160 119 50 50 131 162 111 103 Slowest Speed 550 | 50 150 250 160 550 50 50 400 260 112 550 Overloaded Moves . | . . . . . . . . . . . Propulsion Burnouts . | . . . . . . . . . . . Robots Hopped 9 | . . . . . 1 . 5 . . 3 Potential Cave-ins . | . . . . . . . . . . . Cave-ins Triggered 1 | . 1 . . . . . . . . . Exploration Rate (%) 44 | 3 78 39 56 89 41 9 89 44 27 10 Regions Visited 10 Branch Regions 6 Pre-discovered Areas . | . . . . . . . . . . . Known Exits Taken . | . . . . . . . . . . . Unknown Exits Taken 10 | 1 1 1 1 1 1 1 1 1 1 . Scrap Searched 3 | . . . 1 . . . . . 2 . Spaces Dug 14 | . . . . . . . 14 . . . Terrain Destroyed 506 | . 226 . . 75 . . 191 . . 14 Melee . | . . . . . . . . . . . Projectile . | . . . . . . . . . . . AOE 506 | . 226 . . 75 . . 191 . . 14 Terrain Rammed . | . . . . . . . . . . . Walls Destroyed . | . . . . . . . . . . . Machines Disabled . | . . . . . . . . . . . Actions | -11 -10 -9 -9 -9 -8 -8 -8 -8 -8 -6 --------- Run | Yrd Mat Mat Min Exi Min Mat Sto Rec Scr Fac Total 5504 | 28 782 573 275 1347 130 50 954 290 284 791 Wait 475 | . 26 3 16 113 . . 149 77 50 41 Move 4471 | 28 680 464 232 1084 129 47 698 205 226 678 Hop 9 | . . . . . 1 . 5 . . 3 Pick Up 75 | . 12 15 13 17 . . 4 1 2 11 Fast Attach 16 | . . 2 2 . . . 5 4 2 1 Attach 57 | . 12 10 3 14 . 2 3 . . 13 Detach 13 | . 4 1 . 1 . . 2 . . 5 Swap 12 | . . 1 1 4 . . 3 . . 3 Drop 33 | . . 6 2 16 . . . 2 4 3 Fire 325 | . 48 71 6 98 . 1 70 1 . 30 Melee 18 | . . . . . . . 15 . . 3 Ram . | . . . . . . . . . . . Kick . | . . . . . . . . . . . Crush . | . . . . . . . . . . . Escape Stasis . | . . . . . . . . . . . Rewire . | . . . . . . . . . . . Trap . | . . . . . . . . . . . Miscellaneous . | . . . . . . . . . . . Route ------- -11/Scrapyard -10/Materials (discovered 5 exits: *Mat x3 / [*Min x2]) -9/Materials (discovered 2 exits: *Min x2) -9/Mines (discovered 2 exits: [*Mat] / *Exi) -9/Exiles -8/Mines -8/Materials -8/Storage (discovered 2 exits: [*Fac] / [*Rec]) -8/Recycling (discovered 2 exits: *Fac / [*Scr]) -8/Scraptown -6/Factory History --------- Turn | Location | Event 4 | -11/Scrapyard | Discovered new exit (range 15) 16 | -11/Scrapyard | Entered Materials 63 | -10/Materials | Discovered new exit (range 16) 104 | -10/Materials | Discovered new exit (range 15) 107 | -10/Materials | Crushed by falling debris 187 | -10/Materials | Discovered new exit (range 15) 229 | -10/Materials | Lost 3 parts (1u2w) 229 | -10/Materials | Core integrity fell below 50% 312 | -10/Materials | Build established: Mutant 315 | -10/Materials | Discovered new exit (range 8) 516 | -10/Materials | Derelicts attacked the area 623 | -10/Materials | Discovered new exit (range 14) 627 | -10/Materials | Core integrity fell below 20% 673 | -10/Materials | Entered another Materials area 673 | -9/Materials | Evolved 2 slots: Propulsion x2 757 | -9/Materials | Discovered new exit (range 15) 1409 | -9/Materials | Build established: Scavenger-Mutant 1544 | -9/Materials | Discovered new exit (range 15) 1588 | -9/Materials | Entered Mines 1634 | -9/Mines | Found the Drone Emporium 1641 | -9/Mines | Found Prototype Device 1644 | -9/Mines | Identified Thief Drone Bay 1650 | -9/Mines | Met a Derelict bent on vengeance 1721 | -9/Mines | Learned Materials stockpile data 1770 | -9/Mines | Assisted by bots powering up and referring to "LRC-V3" 1821 | -9/Mines | Discovered new exit (range 11) 1867 | -9/Mines | Joined a pair of Derelicts in attacking an 0b10 outpost 2006 | -9/Mines | Deemed a non-threat by the Exiles lab entrance 2007 | -9/Mines | Discovered new exit (range 5) 2015 | -9/Mines | Entered Exiles 2015 | -9/Exiles | Accompanied by 3 allies 2054 | -9/Exiles | Met 8R-AWN 2083 | -9/Exiles | Met EX-HEX 2124 | -9/Exiles | Met EX-BIN 2156 | -9/Exiles | Aligned with FarCom system 2158 | -9/Exiles | Given EX-Vault access code 2196 | -9/Exiles | Opened EX-Vault 2238 | -9/Exiles | Warned to stay clear of 0b10 Research branches 2281 | -9/Exiles | Met EX-DEC 2400 | -9/Exiles | Attacked by the Exiles 2456 | -9/Exiles | Destroyed 7 combat bots 2626 | -9/Exiles | Destroyed 8R-AWN 2654 | -9/Exiles | Lost 11 parts (7n4w) 2677 | -9/Exiles | Found Prototype Protection 2728 | -9/Exiles | Core integrity fell below 50% 2738 | -9/Exiles | Core integrity fell below 20% 2891 | -9/Exiles | Destroyed EX-BIN 2892 | -9/Exiles | Build established: Mutant 2903 | -9/Exiles | Allies destroyed EX-DEC 2954 | -9/Exiles | Destroyed EX-HEX 3237 | -9/Exiles | Found Deploy-a-Sentry 3251 | -9/Exiles | Found Prototype Device 3252 | -9/Exiles | Identified System Purifier 3370 | -9/Exiles | Found Prototype Processor 3371 | -9/Exiles | Identified Exp. Core Analyzer 3557 | -9/Exiles | Build established: Scavenger-Mutant 3580 | -9/Exiles | Found Flying Fortress v7 3585 | -9/Exiles | Found Cloak of Protection 3587 | -9/Exiles | Found Lightpack 2.0 3685 | -9/Exiles | Discovered new exit (range 14) 3691 | -9/Exiles | Stole four prototypes: Flying Fortress v7, Lightpack 2.0, Cloak of Protection, Deploy-a-Sentry 3691 | -9/Exiles | Entered Mines 3692 | -8/Mines | P1-3CE came to Exiles' defense 3754 | -8/Mines | Discovered new exit (range 7) 3757 | -8/Mines | Entered Materials 3757 | -8/Materials | Evolved 2 slots: Utility x2 3776 | -8/Materials | Discovered new exit (range 15) 3785 | -8/Materials | Entered Storage 3886 | -8/Storage | Repaired Hvy. Assault Rifle 4348 | -8/Storage | Destroyed 7 combat bots 4697 | -8/Storage | Discovered new exit (range 15) 4770 | -8/Storage | Assisted by bots powering up and referring to "LRC-V3" 5085 | -8/Storage | Build established: Commander-Mutant 5093 | -8/Storage | Used back door to open Recycling access 5093 | -8/Storage | Discovered new exit (range 5) 5127 | -8/Storage | Entered Recycling 5127 | -8/Recycling | Accompanied by 10 allies 5128 | -8/Recycling | Met a Zionite searching for Scraptown 5446 | -8/Recycling | Discovered new exit (range 4) 5479 | -8/Recycling | Scanned before Scraplab entrance 5504 | -8/Recycling | Entered Scraplab 5513 | -8/Recycling | Discovered new exit (range 2) 5549 | -8/Recycling | Entered Scraptown 5549 | -8/Scraptown | Accompanied by 9 allies 5572 | -8/Scraptown | Heard Great Nut preacher, LISTEN AND RECITE! 5693 | -8/Scraptown | Visited Supply Room 5727 | -8/Scraptown | Turned away by UFD registrar 5816 | -8/Scraptown | Discovered new exit (range 5) 5859 | -8/Scraptown | Entered Factory 5859 | -6/Factory | Accompanied by 9 allies 5859 | -6/Factory | Evolved 4 slots: Utility x4 6097 | -6/Factory | Spotted B-75 Beast 6170 | -6/Factory | Lost 8 allies 6254 | -6/Factory | Core integrity fell below 50% 6257 | -6/Factory | Lost 6 parts (2n1u3w) 6288 | -6/Factory | Core integrity fell below 20% 6363 | -6/Factory | DAS Turret deployed 6475 | -6/Factory | Build established: Hauler-Mutant 6718 | -6/Factory | Destroyed by S-27 Virus with Autogun Last Messages --------------- Machine Gun. System corrupted: Hvy. Machine Gun misfires. U-05 Engineer lays Concrete. U-05 Engineer builds a Wall. U-05 Engineer lays Concrete. U-05 Engineer builds a Wall. U-05 Engineer lays Concrete. Acquired 6 matter. U-05 Engineer builds a Wall. ALERT: Potential suspicious activity detected, Programmers report to Factory Zone 7D. U-05 Engineer builds a Door. Acquired 71 matter. U-05 Engineer lays Concrete. System corrupted: Energy discharge (-28). U-05 Engineer lays Concrete. U-05 Engineer builds a Wall. U-05 Engineer lays Concrete. U-05 Engineer builds a Wall. U-05 Engineer lays Concrete. Map ----- +----------------------------------------------------+ | ???????###+#######+### = #####+#####?????????? | | ???????# ! = ##?????????? | | ???????# /=!= % ##?????????? | | ?????" # t #??????????? | | ?????" # % #??????????? | | ???? + [% #??????????? | | ???? ?# % #####+### #####+#####?????????? | | ####+### #?? ???# # #?????????? | | %% #? ????# # #?????????? | | ## ?????# # ! #?????????? | | ##??????+ !# #?????????? | | #???????# ! *# #?????????? | | #???????# =!%# """ """ #?????????? | | ! ########???????#####%# """ """ #?????????? | | * #??????????????????#=# """ """ #?????????? | | #??????????????????#%###########?????????? | | #??????????????????#=#???????????????????? | | ! #??????????????????#!####????????????????? | | = #??????????????????#* #????????????????? | | #??????????????????# #????????????????? | | # * #??????????????????# #####????????????? | | #% ! ###############????# #??????????? | | #%=[ # #????# ########+#??????????? | | + ="% #????# #???????????????????? | | # #* #??### ###?????????????????? | | # # """" #??# @ #?????????????????? | | # # """" !! ####s" #?????????????????? | | # # """" ![ + "Ts #?????????????????? | | # # """" ![ #### #?????????????????? | | # + """" #??# #?????????????????? | | # # """" #??## ##?????????????????? | | # # #???# #??????????????????? | | # # #???# /??????????????????? | | # ###############???# # ?????????????????? | | ###+###?????????????????# # ????????????????? | | ????????????????????????# #? ????????????????? | | ????????????????????????# #? ???????????????? | | ????????????????????????+ +??????????????????? | | ????????????????????????? #??????????????????? | | ?????????????????????????? #??????????????????? | | ??????????????????????????+##??????????????????? | | ???????????????????????????????????????????????? | | ???????????????????????????????????????????????? | | ???????????????????????????????????????????????? | | ???????????????????????????????????????????????? | | ???????????????????????????????????????????????? | | ???????????????????????????????????????????????? | | | | | | | +----------------------------------------------------+ Best States ------------- Heat Dissipation 37 Energy Generation 19 Energy Capacity 280 Matter Stores 300 Matter Capacity 300 Sight Range 16 Terrain Scan Density 10 Armor Coverage 150 Evasion (%) 63 Targeting Accuracy 11 Core Analysis 8 Recoil Reduction 4 Offensive Hacking 14 Defensive Hacking 14 Item Schematics ----------------- None Robot Schematics ------------------ O-24 Administrator | -6/Factory | Hacked Fabricated ------------ Nothing Repaired ---------- Hvy. Assault Rifle | 28% | -8/Storage Alien Tech Used ----------------- None Achievements -------------- None Challenges ------------ None Game ------ Seed ExpertBoltClaw Manual? 0 Play Time 00:50:21 Cumulative 175.5 hours Start 2025.10.05 @ 17:56:54 End 2025.10.05 @ 18:47:05 Sessions 1 Manual Loads 0 Difficulty Rogue Special Mode None Game No. 539 Rogue 538 Adventurer 1 Explorer 0 Win Type - Total 0 Types 0/0/0/0/0/0/0/0/0/0 Lore% 61 Gallery% 58 Achievement% 44 Wizard Run 0 Options --------- Layout 1 ASCII 0 Keyboard 0 Movement Mouse Keybinds 0 Fullscreen 1 Font 24/Smallcaps Map View 50x35 Zoom Use 0% Tactical HUD 0 Map Filters NONE Filters NONE Steam 1 RUN: c60de54d-311a-4f1a-b0bf-e90cd942fead